[Event "Titled Tuesday Blitz March 15 Late 2022"]
[White "Tang, Andrew"]
[Black "Aldokhin, Ivan"]
[WhiteFideId "2059630"]
[BlackFideId "24115720"]
[WhiteElo "2584"]
[BlackElo "2231"]
[Result "1-0"]
[Round "08"]
[TimeControl "180+1"]
[Date "2022.03.15"]
[WhiteClock "0:00:04"]
[BlackClock "0:00:02"]

1. d4 {[%clk 0:02:48]}  e6 {[%clk 0:02:59]} 2. Bf4 {[%clk 0:02:45]}  d5 {[%clk 0:02:56]} 3. e3 {[%clk 0:02:45]}  c5 {[%clk 0:02:51]} 4. Nf3 {[%clk 0:02:45]}  Nc6 {[%clk 0:02:50]} 5. Nbd2 {[%clk 0:02:43]}  cxd4 {[%clk 0:02:48]} 6. exd4 {[%clk 0:02:44]}  Bd6 {[%clk 0:02:47]} 7. Bg3 {[%clk 0:02:41]}  Nf6 {[%clk 0:02:46]} 8. c3 {[%clk 0:02:32]}  O-O {[%clk 0:02:44]} 9. Ne5 {[%clk 0:02:29]}  Qc7 {[%clk 0:02:38]} 10. f4 {[%clk 0:02:27]}  Ne4 {[%clk 0:02:25]} 11. Bd3 {[%clk 0:02:00]}  f5 {[%clk 0:02:20]} 12. Qe2 {[%clk 0:01:34]}  Nxe5 {[%clk 0:02:14]} 13. fxe5 {[%clk 0:01:34]}  Be7 {[%clk 0:02:13]} 14. O-O {[%clk 0:01:27]}  Bg5 {[%clk 0:02:03]} 15. Bf4 {[%clk 0:01:25]}  Qe7 {[%clk 0:02:01]} 16. Qe3 {[%clk 0:01:11]}  Bxf4 {[%clk 0:01:55]} 17. Rxf4 {[%clk 0:01:12]}  Nxd2 {[%clk 0:01:39]} 18. Qxd2 {[%clk 0:00:56]}  g5 {[%clk 0:01:36]} 19. Rf2 {[%clk 0:00:55]}  Bd7 {[%clk 0:01:36]} 20. Raf1 {[%clk 0:00:50]}  Rf7 {[%clk 0:01:36]} 21. g4 {[%clk 0:00:45]}  f4 {[%clk 0:01:32]} 22. h4 {[%clk 0:00:43]}  Raf8 {[%clk 0:01:08]} 23. Bb1 {[%clk 0:00:28]}  gxh4 {[%clk 0:00:59]} 24. Rxf4 {[%clk 0:00:28]}  Rxf4 {[%clk 0:00:46]} 25. Rxf4 {[%clk 0:00:29]}  Rf7 {[%clk 0:00:39]} 26. Rxf7 {[%clk 0:00:25]}  Kxf7 {[%clk 0:00:25]} 27. Qh6 {[%clk 0:00:24]}  Kg8 {[%clk 0:00:24]} 28. g5 {[%clk 0:00:17]}  Be8 {[%clk 0:00:22]} 29. Bd3 {[%clk 0:00:16]}  a6 {[%clk 0:00:21]} 30. Kg2 {[%clk 0:00:16]}  Qf7 {[%clk 0:00:20]} 31. Qxh4 {[%clk 0:00:13]}  Bb5 {[%clk 0:00:17]} 32. Bxb5 {[%clk 0:00:11]}  axb5 {[%clk 0:00:18]} 33. Qg4 {[%clk 0:00:09]}  Qg6 {[%clk 0:00:18]} 34. Kh3 {[%clk 0:00:07]}  Qd3+ {[%clk 0:00:18]} 35. Kh4 {[%clk 0:00:08]}  Kf7 {[%clk 0:00:17]} 36. Qf4+ {[%clk 0:00:09]}  Ke8 {[%clk 0:00:15]} 37. Qf2 {[%clk 0:00:04]}  Qe4+ {[%clk 0:00:15]} 38. Kg3 {[%clk 0:00:05]}  Qd3+ {[%clk 0:00:14]} 39. Kg4 {[%clk 0:00:05]}  Qe4+ {[%clk 0:00:13]} 40. Kg3 {[%clk 0:00:05]}  Qd3+ {[%clk 0:00:13]} 41. Qf3 {[%clk 0:00:06]}  Qg6 {[%clk 0:00:12]} 42. Kh4 {[%clk 0:00:06]}  Qc2 {[%clk 0:00:10]} 43. b4 {[%clk 0:00:03]}  Qb1 {[%clk 0:00:09]} 44. a3 {[%clk 0:00:02]}  Qc2 {[%clk 0:00:09]} 45. Kg4 {[%clk 0:00:02]}  Qb1 {[%clk 0:00:09]} 46. Kh5 {[%clk 0:00:02]}  Qg6+ {[%clk 0:00:09]} 47. Kh4 {[%clk 0:00:03]}  Qc2 {[%clk 0:00:09]} 48. Qh3 {[%clk 0:00:03]}  Qf2+ {[%clk 0:00:09]} 49. Kh5 {[%clk 0:00:02]}  Qf7+ {[%clk 0:00:09]} 50. Kg4 {[%clk 0:00:02]}  Qf5+ {[%clk 0:00:08]} 51. Kh4 {[%clk 0:00:03]}  Qe4+ {[%clk 0:00:08]} 52. Qg4 {[%clk 0:00:03]}  Qe1+ {[%clk 0:00:08]} 53. Qg3 {[%clk 0:00:01]}  Qe4+ {[%clk 0:00:08]} 54. Kh5 {[%clk 0:00:02]}  Qg6+ {[%clk 0:00:08]} 55. Kg4 {[%clk 0:00:03]}  Qf5+ {[%clk 0:00:08]} 56. Kh4 {[%clk 0:00:03]}  Qe4+ {[%clk 0:00:08]} 57. Qg4 {[%clk 0:00:04]}  Qe1+ {[%clk 0:00:08]} 58. Kh5 {[%clk 0:00:02]}  Qh1+ {[%clk 0:00:07]} 59. Qh4 {[%clk 0:00:03]}  Qb1 {[%clk 0:00:06]} 60. Qf4 {[%clk 0:00:03]}  Qg6+ {[%clk 0:00:06]} 61. Kg4 {[%clk 0:00:03]}  Qc2 {[%clk 0:00:06]} 62. Qf3 {[%clk 0:00:04]}  Qg6 {[%clk 0:00:06]} 63. Qe2 {[%clk 0:00:03]}  Qb1 {[%clk 0:00:06]} 64. Qxb5+ {[%clk 0:00:03]}  Kd8 {[%clk 0:00:05]} 65. Qb6+ {[%clk 0:00:03]}  Ke7 {[%clk 0:00:04]} 66. Qd6+ {[%clk 0:00:03]}  Kf7 {[%clk 0:00:03]} 67. Qd7+ {[%clk 0:00:03]}  Kf8 {[%clk 0:00:03]} 68. Qd8+ {[%clk 0:00:04]}  Kf7 {[%clk 0:00:03]} 69. Qf6+ {[%clk 0:00:05]}  Kg8 {[%clk 0:00:03]} 70. Qxe6+ {[%clk 0:00:05]}  Kf8 {[%clk 0:00:03]} 71. Qc8+ {[%clk 0:00:06]}  Ke7 {[%clk 0:00:03]} 72. Qxb7+ {[%clk 0:00:06]}  Ke6 {[%clk 0:00:03]} 73. Qc6+ {[%clk 0:00:07]}  Ke7 {[%clk 0:00:04]} 74. Qd6+ {[%clk 0:00:07]}  Ke8 {[%clk 0:00:05]} 75. Qe6+ {[%clk 0:00:07]}  Kd8 {[%clk 0:00:05]} 76. Qg8+ {[%clk 0:00:08]}  Kc7 {[%clk 0:00:05]} 77. Qf7+ {[%clk 0:00:08]}  Kb6 {[%clk 0:00:06]} 78. Qf3 {[%clk 0:00:07]}  Qg6 {[%clk 0:00:05]} 79. Qxd5 {[%clk 0:00:07]}  Qd3 {[%clk 0:00:05]} 80. Qc5+ {[%clk 0:00:07]}  Kb7 {[%clk 0:00:06]} 81. Qe7+ {[%clk 0:00:07]}  Ka6 {[%clk 0:00:06]} 82. Qf6+ {[%clk 0:00:07]}  Kb5 {[%clk 0:00:06]} 83. Qf3 {[%clk 0:00:07]}  Qd2 {[%clk 0:00:06]} 84. e6 {[%clk 0:00:07]}  Qe1 {[%clk 0:00:05]} 85. d5 {[%clk 0:00:08]}  Qg1+ {[%clk 0:00:05]} 86. Kf5 {[%clk 0:00:08]}  Qb1+ {[%clk 0:00:05]} 87. Ke5 {[%clk 0:00:07]}  Qg6 {[%clk 0:00:04]} 88. Qe3 {[%clk 0:00:06]}  Qg7+ {[%clk 0:00:03]} 89. Kf4 {[%clk 0:00:06]}  Qf8+ {[%clk 0:00:02]} 90. Kg3 {[%clk 0:00:07]}  Qf5 {[%clk 0:00:02]} 91. e7 {[%clk 0:00:07]}  Qd3 {[%clk 0:00:01]} 92. Qxd3+ {[%clk 0:00:04]}  Ka4 {[%clk 0:00:02]} 93. e8=Q+ {[%clk 0:00:04]}  Kb3 {[%clk 0:00:02]} 94. c4+ {[%clk 0:00:04]} 1-0


[Site "https://www.chess.com"]

[Event "Titled Tuesday Blitz March 15 Late 2022"]
[White "Van den Dikkenberg, Erik"]
[Black "Hess, Max"]
[WhiteFideId "1005880"]
[BlackFideId "24656666"]
[WhiteElo "2118"]
[BlackElo "2276"]
[Result "0-1"]
[Round "08"]
[TimeControl "180+1"]
[Date "2022.03.16"]
[WhiteClock "0:00:16"]
[BlackClock "0:01:08"]

1. e4 {[%clk 0:03:00]}  c6 {[%clk 0:02:55]} 2. d4 {[%clk 0:02:59]}  d5 {[%clk 0:02:55]} 3. exd5 {[%clk 0:03:00]}  cxd5 {[%clk 0:02:55]} 4. Bd3 {[%clk 0:03:01]}  Nf6 {[%clk 0:02:53]} 5. c3 {[%clk 0:03:01]}  Qc7 {[%clk 0:02:52]} 6. Ne2 {[%clk 0:02:58]}  Bg4 {[%clk 0:02:50]} 7. h3 {[%clk 0:02:58]}  Bh5 {[%clk 0:02:50]} 8. O-O {[%clk 0:02:55]}  e6 {[%clk 0:02:49]} 9. Qc2 {[%clk 0:02:51]}  Bd6 {[%clk 0:02:45]} 10. Bg5 {[%clk 0:02:50]}  Nbd7 {[%clk 0:02:44]} 11. Nd2 {[%clk 0:02:47]}  Bg6 {[%clk 0:02:37]} 12. f4 {[%clk 0:02:38]}  Bxd3 {[%clk 0:02:35]} 13. Qxd3 {[%clk 0:02:38]}  g6 {[%clk 0:02:06]} 14. Rae1 {[%clk 0:02:20]}  h6 {[%clk 0:02:04]} 15. Bxf6 {[%clk 0:02:11]}  Nxf6 {[%clk 0:02:05]} 16. Nf3 {[%clk 0:01:39]}  Ne4 {[%clk 0:02:01]} 17. Ne5 {[%clk 0:01:36]}  O-O-O {[%clk 0:01:55]} 18. Ng3 {[%clk 0:01:20]}  f5 {[%clk 0:01:51]} 19. Nxe4 {[%clk 0:01:11]}  dxe4 {[%clk 0:01:35]} 20. Qb5 {[%clk 0:00:53]}  g5 {[%clk 0:01:28]} 21. Qb3 {[%clk 0:00:38]}  Rde8 {[%clk 0:01:21]} 22. Nc4 {[%clk 0:00:33]}  gxf4 {[%clk 0:01:14]} 23. Nxd6+ {[%clk 0:00:31]}  Qxd6 {[%clk 0:01:14]} 24. Qa4 {[%clk 0:00:27]}  Kb8 {[%clk 0:01:11]} 25. b4 {[%clk 0:00:17]}  f3 {[%clk 0:01:10]} 26. gxf3 {[%clk 0:00:15]}  Qg3+ {[%clk 0:01:10]} 27. Kh1 {[%clk 0:00:16]}  Rhg8 {[%clk 0:01:08]} 0-1


[Site "https://www.chess.com"]

[Event "Titled Tuesday Blitz March 15 Late 2022"]
[White "Vargas Pereda, Jesus Manue"]
[Black "Andrews, Todd"]
[WhiteFideId "5115710"]
[BlackFideId "2012456"]
[WhiteElo "1861"]
[BlackElo "2297"]
[Result "0-1"]
[Round "08"]
[TimeControl "180+1"]
[Date "2022.03.16"]
[WhiteClock "0:01:07"]
[BlackClock "0:01:29"]

1. d4 {[%clk 0:02:59]}  Nf6 {[%clk 0:02:53]} 2. Bf4 {[%clk 0:02:58]}  d6 {[%clk 0:02:52]} 3. e3 {[%clk 0:02:56]}  Nbd7 {[%clk 0:02:52]} 4. Nf3 {[%clk 0:02:56]}  c5 {[%clk 0:02:52]} 5. c3 {[%clk 0:02:55]}  b6 {[%clk 0:02:51]} 6. Bd3 {[%clk 0:02:51]}  Bb7 {[%clk 0:02:47]} 7. Nbd2 {[%clk 0:02:51]}  e6 {[%clk 0:02:10]} 8. O-O {[%clk 0:02:48]}  cxd4 {[%clk 0:02:10]} 9. exd4 {[%clk 0:02:47]}  Be7 {[%clk 0:02:11]} 10. Nc4 {[%clk 0:02:33]}  Qc7 {[%clk 0:02:09]} 11. Re1 {[%clk 0:02:22]}  O-O {[%clk 0:02:08]} 12. Qe2 {[%clk 0:02:20]}  Rfe8 {[%clk 0:02:07]} 13. h3 {[%clk 0:02:19]}  Rac8 {[%clk 0:02:06]} 14. Rad1 {[%clk 0:02:18]}  Qb8 {[%clk 0:02:04]} 15. Ne3 {[%clk 0:02:03]}  Qa8 {[%clk 0:01:59]} 16. Bg3 {[%clk 0:01:54]}  a6 {[%clk 0:01:56]} 17. Bb1 {[%clk 0:01:37]}  Bf8 {[%clk 0:01:54]} 18. Rd2 {[%clk 0:01:28]}  b5 {[%clk 0:01:52]} 19. Red1 {[%clk 0:01:28]}  Be4 {[%clk 0:01:46]} 20. Bxe4 {[%clk 0:01:27]}  Nxe4 {[%clk 0:01:45]} 21. Rd3 {[%clk 0:01:22]}  Nxg3 {[%clk 0:01:43]} 22. fxg3 {[%clk 0:01:22]}  g6 {[%clk 0:01:37]} 23. Qf2 {[%clk 0:01:21]}  Bg7 {[%clk 0:01:35]} 24. d5 {[%clk 0:01:19]}  e5 {[%clk 0:01:34]} 25. Nd2 {[%clk 0:01:18]}  Rf8 {[%clk 0:01:32]} 26. g4 {[%clk 0:01:16]}  Nc5 {[%clk 0:01:32]} 27. Nf3 {[%clk 0:01:08]}  Nxd3 {[%clk 0:01:29]} 28. Rxd3 {[%clk 0:01:07]}  e4 {[%clk 0:01:29]} 0-1


[Site "https://www.chess.com"]

[Event "Titled Tuesday Blitz March 15 Late 2022"]
[White "Vlassov, Nikolai"]
[Black "Weber, Samuel"]
[WhiteFideId "4103360"]
[BlackFideId "12924008"]
[WhiteElo "2407"]
[BlackElo "2215"]
[Result "0-1"]
[Round "08"]
[TimeControl "180+1"]
[Date "2022.03.16"]
[WhiteClock "0:00:54"]
[BlackClock "0:00:43"]

1. e4 {[%clk 0:03:00]}  e5 {[%clk 0:02:55]} 2. Bc4 {[%clk 0:03:00]}  Nf6 {[%clk 0:02:49]} 3. Nc3 {[%clk 0:02:59]}  Nxe4 {[%clk 0:02:38]} 4. Qh5 {[%clk 0:02:58]}  Nd6 {[%clk 0:02:36]} 5. Bb3 {[%clk 0:02:58]}  Be7 {[%clk 0:02:28]} 6. Nf3 {[%clk 0:02:57]}  Nc6 {[%clk 0:02:24]} 7. d3 {[%clk 0:02:55]}  O-O {[%clk 0:02:22]} 8. Ng5 {[%clk 0:02:38]}  h6 {[%clk 0:02:07]} 9. h4 {[%clk 0:02:33]}  Nd4 {[%clk 0:02:01]} 10. Qg6 {[%clk 0:02:11]}  Bxg5 {[%clk 0:01:59]} 11. Bxg5 {[%clk 0:01:43]}  Nxb3 {[%clk 0:01:48]} 12. Qh5 {[%clk 0:01:42]}  f6 {[%clk 0:01:40]} 13. axb3 {[%clk 0:01:40]}  fxg5 {[%clk 0:01:38]} 14. hxg5 {[%clk 0:01:40]}  Qxg5 {[%clk 0:01:38]} 15. Qxg5 {[%clk 0:01:38]}  hxg5 {[%clk 0:01:38]} 16. Nd5 {[%clk 0:01:38]}  Ne8 {[%clk 0:01:25]} 17. Rh5 {[%clk 0:01:31]}  c6 {[%clk 0:01:21]} 18. Ne7+ {[%clk 0:01:29]}  Kf7 {[%clk 0:01:21]} 19. Nxc8 {[%clk 0:01:29]}  Rxc8 {[%clk 0:01:21]} 20. Rxa7 {[%clk 0:01:29]}  Kg6 {[%clk 0:01:17]} 21. Rh3 {[%clk 0:01:23]}  Nd6 {[%clk 0:01:17]} 22. c4 {[%clk 0:01:20]}  Ra8 {[%clk 0:01:17]} 23. Rxa8 {[%clk 0:01:20]}  Rxa8 {[%clk 0:01:18]} 24. Kd2 {[%clk 0:01:20]}  Rf8 {[%clk 0:01:09]} 25. f3 {[%clk 0:01:19]}  Ra8 {[%clk 0:01:07]} 26. Rh1 {[%clk 0:01:14]}  Nf5 {[%clk 0:01:06]} 27. c5 {[%clk 0:01:10]}  Nd4 {[%clk 0:01:01]} 28. b4 {[%clk 0:01:09]}  b6 {[%clk 0:00:53]} 29. Re1 {[%clk 0:00:58]}  Kf6 {[%clk 0:00:50]} 30. cxb6 {[%clk 0:00:57]}  Rb8 {[%clk 0:00:49]} 31. Kc3 {[%clk 0:00:56]}  Rxb6 {[%clk 0:00:47]} 32. Ra1 {[%clk 0:00:56]}  Rxb4 {[%clk 0:00:42]} 33. Ra7 {[%clk 0:00:54]}  Nb5+ {[%clk 0:00:42]} 34. Kxb4 {[%clk 0:00:54]}  Nxa7 {[%clk 0:00:43]} 35. Kc5 {[%clk 0:00:54]}  Nc8 {[%clk 0:00:43]} 0-1


[Site "https://www.chess.com"]

[Event "Titled Tuesday Blitz March 15 Late 2022"]
[White "Yedidia, Daniel"]
[Black "Marson, Juan Miguel"]
[WhiteFideId "30905907"]
[BlackFideId "106585"]
[WhiteElo "2499"]
[BlackElo "2053"]
[Result "1-0"]
[Round "08"]
[TimeControl "180+1"]
[Date "2022.03.16"]
[WhiteClock "0:00:52"]
[BlackClock "0:00:09"]

1. d4 {[%clk 0:03:00]}  Nf6 {[%clk 0:02:59]} 2. c4 {[%clk 0:03:00]}  g6 {[%clk 0:03:00]} 3. Nc3 {[%clk 0:03:00]}  Bg7 {[%clk 0:03:00]} 4. e4 {[%clk 0:03:00]}  d6 {[%clk 0:03:01]} 5. Nf3 {[%clk 0:03:01]}  O-O {[%clk 0:03:01]} 6. Be2 {[%clk 0:03:01]}  e5 {[%clk 0:03:01]} 7. Be3 {[%clk 0:03:02]}  Ng4 {[%clk 0:02:44]} 8. Bg5 {[%clk 0:03:01]}  f6 {[%clk 0:02:45]} 9. Bh4 {[%clk 0:03:01]}  Nc6 {[%clk 0:02:43]} 10. O-O {[%clk 0:03:00]}  g5 {[%clk 0:02:42]} 11. Bg3 {[%clk 0:02:59]}  Nh6 {[%clk 0:02:42]} 12. d5 {[%clk 0:02:54]}  Ne7 {[%clk 0:02:41]} 13. Ne1 {[%clk 0:02:53]}  Ng6 {[%clk 0:02:34]} 14. Nd3 {[%clk 0:02:53]}  Nf4 {[%clk 0:02:31]} 15. b4 {[%clk 0:02:51]}  f5 {[%clk 0:02:23]} 16. f3 {[%clk 0:02:51]}  Nxe2+ {[%clk 0:02:22]} 17. Qxe2 {[%clk 0:02:48]}  g4 {[%clk 0:02:22]} 18. fxg4 {[%clk 0:02:46]}  f4 {[%clk 0:02:13]} 19. Bf2 {[%clk 0:02:45]}  Nxg4 {[%clk 0:02:13]} 20. h3 {[%clk 0:02:39]}  Nh6 {[%clk 0:02:00]} 21. Ne1 {[%clk 0:02:36]}  Qg5 {[%clk 0:01:40]} 22. Nf3 {[%clk 0:02:35]}  Qg6 {[%clk 0:01:41]} 23. Kh2 {[%clk 0:02:33]}  Kh8 {[%clk 0:01:36]} 24. c5 {[%clk 0:02:33]}  Qh5 {[%clk 0:01:35]} 25. Kg1 {[%clk 0:02:25]}  Rg8 {[%clk 0:01:34]} 26. Nh4 {[%clk 0:02:09]}  Qf7 {[%clk 0:01:26]} 27. cxd6 {[%clk 0:02:07]}  cxd6 {[%clk 0:01:26]} 28. Nb5 {[%clk 0:02:06]}  Bf8 {[%clk 0:01:24]} 29. Kh2 {[%clk 0:01:58]}  a6 {[%clk 0:01:24]} 30. Na3 {[%clk 0:01:53]}  Bd7 {[%clk 0:01:12]} 31. Rac1 {[%clk 0:01:50]}  Rc8 {[%clk 0:01:08]} 32. Rxc8 {[%clk 0:01:50]}  Bxc8 {[%clk 0:01:08]} 33. Rc1 {[%clk 0:01:46]}  Bg7 {[%clk 0:00:26]} 34. Nc4 {[%clk 0:01:42]}  Qe7 {[%clk 0:00:17]} 35. Nb6 {[%clk 0:01:37]}  Bxh3 {[%clk 0:00:13]} 36. gxh3 {[%clk 0:01:35]}  Bf6 {[%clk 0:00:12]} 37. Nf3 {[%clk 0:01:29]}  Nf7 {[%clk 0:00:08]} 38. Rg1 {[%clk 0:01:26]}  Rxg1 {[%clk 0:00:06]} 39. Nxg1 {[%clk 0:01:26]}  Ng5 {[%clk 0:00:06]} 40. Qg4 {[%clk 0:01:25]}  Qf7 {[%clk 0:00:03]} 41. Qf5 {[%clk 0:01:11]}  Kg7 {[%clk 0:00:03]} 42. Nd7 {[%clk 0:01:07]}  Be7 {[%clk 0:00:03]} 43. Qxf7+ {[%clk 0:01:05]}  Kxf7 {[%clk 0:00:04]} 44. Bh4 {[%clk 0:00:57]}  Nxe4 {[%clk 0:00:04]} 45. Bxe7 {[%clk 0:00:57]}  Kxe7 {[%clk 0:00:05]} 46. Nb6 {[%clk 0:00:58]}  Nc3 {[%clk 0:00:05]} 47. a4 {[%clk 0:00:58]}  Kd8 {[%clk 0:00:05]} 48. a5 {[%clk 0:00:59]}  Kc7 {[%clk 0:00:05]} 49. Kg2 {[%clk 0:00:58]}  e4 {[%clk 0:00:06]} 50. Kf2 {[%clk 0:00:58]}  h5 {[%clk 0:00:05]} 51. h4 {[%clk 0:00:59]}  Na2 {[%clk 0:00:03]} 52. Nh3 {[%clk 0:00:58]}  e3+ {[%clk 0:00:02]} 53. Kf3 {[%clk 0:00:56]}  Nxb4 {[%clk 0:00:03]} 54. Nxf4 {[%clk 0:00:56]}  Nc2 {[%clk 0:00:01]} 55. Nxh5 {[%clk 0:00:54]}  Kd8 {[%clk 0:00:02]} 56. Ng3 {[%clk 0:00:52]}  Ke7 {[%clk 0:00:02]} 57. Nf5+ {[%clk 0:00:53]}  Kf6 {[%clk 0:00:02]} 58. Nxe3 {[%clk 0:00:54]}  Nd4+ {[%clk 0:00:03]} 59. Ke4 {[%clk 0:00:54]}  Nb3 {[%clk 0:00:03]} 60. Nbc4 {[%clk 0:00:51]}  Nc5+ {[%clk 0:00:04]} 61. Kf4 {[%clk 0:00:52]}  Ke7 {[%clk 0:00:03]} 62. h5 {[%clk 0:00:52]}  Nd3+ {[%clk 0:00:03]} 63. Kf5 {[%clk 0:00:52]}  Kf7 {[%clk 0:00:03]} 64. Nxd6+ {[%clk 0:00:52]}  Kg7 {[%clk 0:00:03]} 65. Nxb7 {[%clk 0:00:53]}  Nc5 {[%clk 0:00:03]} 66. Nxc5 {[%clk 0:00:53]}  Kh6 {[%clk 0:00:04]} 67. Kg4 {[%clk 0:00:53]}  Kg7 {[%clk 0:00:04]} 68. Kg5 {[%clk 0:00:53]}  Kh7 {[%clk 0:00:05]} 69. Nf5 {[%clk 0:00:53]}  Kh8 {[%clk 0:00:06]} 70. Kg6 {[%clk 0:00:53]}  Kg8 {[%clk 0:00:07]} 71. Ne6 {[%clk 0:00:52]}  Kh8 {[%clk 0:00:07]} 72. d6 {[%clk 0:00:53]}  Kg8 {[%clk 0:00:08]} 73. d7 {[%clk 0:00:52]}  Kh8 {[%clk 0:00:09]} 74. d8=Q# {[%clk 0:00:52]} 1-0


[Site "https://www.chess.com"]

[Event "Titled Tuesday Blitz March 15 Late 2022"]
[White "Zomorrodian, Eilia"]
[Black "Xu, Yi"]
[WhiteFideId "12551805"]
[BlackFideId "8605564"]
[WhiteElo "2098"]
[BlackElo "2471"]
[Result "0-1"]
[Round "08"]
[TimeControl "180+1"]
[Date "2022.03.15"]
[WhiteClock "0:00:05"]
[BlackClock "0:00:15"]

1. e4 {[%clk 0:03:00]}  c5 {[%clk 0:02:59]} 2. Nf3 {[%clk 0:02:59]}  d6 {[%clk 0:02:59]} 3. Bb5+ {[%clk 0:02:59]}  Nd7 {[%clk 0:02:58]} 4. O-O {[%clk 0:02:58]}  a6 {[%clk 0:02:57]} 5. Bd3 {[%clk 0:02:58]}  Ngf6 {[%clk 0:02:55]} 6. c3 {[%clk 0:02:58]}  e6 {[%clk 0:02:54]} 7. Bc2 {[%clk 0:02:58]}  c4 {[%clk 0:02:48]} 8. b3 {[%clk 0:02:52]}  b5 {[%clk 0:02:47]} 9. Re1 {[%clk 0:02:50]}  Bb7 {[%clk 0:02:43]} 10. b4 {[%clk 0:02:50]}  g6 {[%clk 0:02:37]} 11. a4 {[%clk 0:02:50]}  Bg7 {[%clk 0:02:35]} 12. Na3 {[%clk 0:02:50]}  Bc6 {[%clk 0:02:34]} 13. d4 {[%clk 0:02:48]}  cxd3 {[%clk 0:02:27]} 14. Bxd3 {[%clk 0:02:46]}  bxa4 {[%clk 0:02:27]} 15. Nc4 {[%clk 0:02:41]}  Nb6 {[%clk 0:02:16]} 16. Na5 {[%clk 0:02:33]}  Bd7 {[%clk 0:02:13]} 17. Bf4 {[%clk 0:02:16]}  e5 {[%clk 0:02:09]} 18. Be3 {[%clk 0:02:10]}  O-O {[%clk 0:02:06]} 19. h3 {[%clk 0:02:02]}  Qc7 {[%clk 0:01:59]} 20. Qd2 {[%clk 0:01:56]}  Rfe8 {[%clk 0:01:44]} 21. c4 {[%clk 0:01:42]}  Bc6 {[%clk 0:01:44]} 22. c5 {[%clk 0:01:14]}  dxc5 {[%clk 0:01:41]} 23. Bxc5 {[%clk 0:01:04]}  Bb5 {[%clk 0:01:37]} 24. Qe3 {[%clk 0:01:03]}  Nbd7 {[%clk 0:01:33]} 25. Rec1 {[%clk 0:00:58]}  Nxc5 {[%clk 0:01:30]} 26. Rxc5 {[%clk 0:00:58]}  Qd7 {[%clk 0:01:26]} 27. Nxe5 {[%clk 0:00:31]}  Rxe5 {[%clk 0:01:08]} 28. Bxb5 {[%clk 0:00:31]}  axb5 {[%clk 0:01:08]} 29. Rxe5 {[%clk 0:00:31]}  Ng4 {[%clk 0:01:08]} 30. hxg4 {[%clk 0:00:25]}  Bxe5 {[%clk 0:01:08]} 31. Rc1 {[%clk 0:00:24]}  Qxg4 {[%clk 0:01:05]} 32. g3 {[%clk 0:00:24]}  Bb2 {[%clk 0:01:01]} 33. Rc7 {[%clk 0:00:22]}  a3 {[%clk 0:00:59]} 34. Qb3 {[%clk 0:00:22]}  Qe6 {[%clk 0:00:58]} 35. Qc2 {[%clk 0:00:11]}  Be5 {[%clk 0:00:53]} 36. Rc6 {[%clk 0:00:11]}  a2 {[%clk 0:00:47]} 37. Nb3 {[%clk 0:00:06]}  Qxb3 {[%clk 0:00:39]} 38. Qxb3 {[%clk 0:00:07]}  a1=Q+ {[%clk 0:00:39]} 39. Kg2 {[%clk 0:00:08]}  Qd4 {[%clk 0:00:37]} 40. Qf3 {[%clk 0:00:06]}  Rf8 {[%clk 0:00:36]} 41. Rc5 {[%clk 0:00:07]}  Rb8 {[%clk 0:00:26]} 42. Rd5 {[%clk 0:00:06]}  Qc3 {[%clk 0:00:26]} 43. Qg4 {[%clk 0:00:05]}  Bg7 {[%clk 0:00:25]} 44. Qd7 {[%clk 0:00:05]}  Qxb4 {[%clk 0:00:23]} 45. f3 {[%clk 0:00:04]}  Qb2+ {[%clk 0:00:23]} 46. Kh3 {[%clk 0:00:04]}  b4 {[%clk 0:00:21]} 47. Qc7 {[%clk 0:00:05]}  Rf8 {[%clk 0:00:22]} 48. Rb5 {[%clk 0:00:04]}  Qc3 {[%clk 0:00:21]} 49. Qb7 {[%clk 0:00:05]}  Qxf3 {[%clk 0:00:21]} 50. Rxb4 {[%clk 0:00:06]}  Qh1+ {[%clk 0:00:21]} 51. Kg4 {[%clk 0:00:06]}  f5+ {[%clk 0:00:20]} 52. exf5 {[%clk 0:00:06]}  Qh5+ {[%clk 0:00:19]} 53. Kf4 {[%clk 0:00:06]}  Qxf5+ {[%clk 0:00:19]} 54. Ke3 {[%clk 0:00:06]}  Qc5+ {[%clk 0:00:17]} 55. Kd3 {[%clk 0:00:05]}  Rd8+ {[%clk 0:00:17]} 56. Ke2 {[%clk 0:00:05]}  Qc2+ {[%clk 0:00:17]} 57. Kf3 {[%clk 0:00:06]}  Qd3+ {[%clk 0:00:16]} 58. Kg4 {[%clk 0:00:06]}  Qe2+ {[%clk 0:00:16]} 59. Kf4 {[%clk 0:00:06]}  Rf8+ {[%clk 0:00:15]} 60. Kg5 {[%clk 0:00:05]}  Qh5# {[%clk 0:00:15]} 0-1


[Site "https://www.chess.com"]

[Event "Titled Tuesday Blitz March 15 Late 2022"]
[White "Abdyzhapar, Asylbek"]
[Black "Taichman, Ori"]
[WhiteFideId "13800337"]
[BlackFideId "2804069"]
[WhiteElo "2331"]
[BlackElo "2227"]
[Result "1-0"]
[Round "09"]
[TimeControl "180+1"]
[Date "2022.03.15"]
[WhiteClock "0:01:23"]
[BlackClock "0:00:18"]

1. d4 {[%clk 0:02:45]}  Nf6 {[%clk 0:02:59]} 2. Bf4 {[%clk 0:02:45]}  g6 {[%clk 0:02:59]} 3. e3 {[%clk 0:02:45]}  Bg7 {[%clk 0:02:59]} 4. Nd2 {[%clk 0:02:46]}  d6 {[%clk 0:02:59]} 5. h3 {[%clk 0:02:45]}  O-O {[%clk 0:02:56]} 6. Ngf3 {[%clk 0:02:45]}  Nc6 {[%clk 0:02:57]} 7. Be2 {[%clk 0:02:46]}  Nd7 {[%clk 0:02:57]} 8. Bh2 {[%clk 0:02:45]}  e5 {[%clk 0:02:57]} 9. O-O {[%clk 0:02:46]}  f5 {[%clk 0:02:49]} 10. c3 {[%clk 0:02:45]}  e4 {[%clk 0:02:45]} 11. Ne1 {[%clk 0:02:44]}  Nf6 {[%clk 0:02:44]} 12. f3 {[%clk 0:02:40]}  Qe7 {[%clk 0:02:38]} 13. fxe4 {[%clk 0:02:39]}  Nxe4 {[%clk 0:02:38]} 14. Nxe4 {[%clk 0:02:39]}  fxe4 {[%clk 0:02:31]} 15. Rxf8+ {[%clk 0:02:36]}  Bxf8 {[%clk 0:02:31]} 16. Nc2 {[%clk 0:02:32]}  Bh6 {[%clk 0:02:31]} 17. Qe1 {[%clk 0:02:12]}  Be6 {[%clk 0:02:29]} 18. c4 {[%clk 0:02:09]}  Bf5 {[%clk 0:02:05]} 19. b4 {[%clk 0:02:08]}  Rf8 {[%clk 0:02:00]} 20. c5 {[%clk 0:02:08]}  d5 {[%clk 0:01:52]} 21. b5 {[%clk 0:02:08]}  Nd8 {[%clk 0:01:52]} 22. Qa5 {[%clk 0:02:06]}  Ne6 {[%clk 0:01:32]} 23. Rf1 {[%clk 0:01:47]}  Ng5 {[%clk 0:00:53]} 24. Qxc7 {[%clk 0:01:41]}  Nf3+ {[%clk 0:00:44]} 25. gxf3 {[%clk 0:01:37]}  Qg5+ {[%clk 0:00:35]} 26. Qg3 {[%clk 0:01:36]}  exf3 {[%clk 0:00:31]} 27. Bxf3 {[%clk 0:01:36]}  Bxc2 {[%clk 0:00:27]} 28. Qxg5 {[%clk 0:01:35]}  Bxg5 {[%clk 0:00:25]} 29. Bxd5+ {[%clk 0:01:35]}  Kg7 {[%clk 0:00:25]} 30. Be5+ {[%clk 0:01:35]}  Bf6 {[%clk 0:00:25]} 31. Rxf6 {[%clk 0:01:34]}  Rxf6 {[%clk 0:00:26]} 32. Bxb7 {[%clk 0:01:34]}  Kf7 {[%clk 0:00:27]} 33. Bxf6 {[%clk 0:01:31]}  Kxf6 {[%clk 0:00:28]} 34. Kf2 {[%clk 0:01:25]}  Ke7 {[%clk 0:00:25]} 35. b6 {[%clk 0:01:25]}  axb6 {[%clk 0:00:25]} 36. cxb6 {[%clk 0:01:25]}  Kd7 {[%clk 0:00:23]} 37. e4 {[%clk 0:01:26]}  g5 {[%clk 0:00:20]} 38. e5 {[%clk 0:01:25]}  h5 {[%clk 0:00:20]} 39. Kg3 {[%clk 0:01:25]}  Bf5 {[%clk 0:00:19]} 40. a4 {[%clk 0:01:25]}  h4+ {[%clk 0:00:19]} 41. Kh2 {[%clk 0:01:25]}  g4 {[%clk 0:00:14]} 42. hxg4 {[%clk 0:01:25]}  Bxg4 {[%clk 0:00:15]} 43. a5 {[%clk 0:01:25]}  Be2 {[%clk 0:00:15]} 44. a6 {[%clk 0:01:24]}  Bxa6 {[%clk 0:00:15]} 45. Bxa6 {[%clk 0:01:24]}  Kc6 {[%clk 0:00:16]} 46. b7 {[%clk 0:01:25]}  Kc7 {[%clk 0:00:17]} 47. e6 {[%clk 0:01:25]}  h3 {[%clk 0:00:17]} 48. e7 {[%clk 0:01:25]}  Kd6 {[%clk 0:00:17]} 49. b8=Q+ {[%clk 0:01:25]}  Kd5 {[%clk 0:00:18]} 50. e8=Q {[%clk 0:01:23]} 1-0


[Site "https://www.chess.com"]